fUST/lending_fUST_20251018
["ID","MTS","AMOUNT","RATE_DAILY","PERIOD"]
[391737773,1760763091610,-390.24543239,0.00024624,2]
[391737774,1760763091641,-500.0,0.00024624,2]
[391737775,1760763091671,-500.0,0.00024624,2]
[391737776,1760763091700,-500.0,0.00024624,2]
[391737777,1760763091730,-500.0,0.00024624,2]
[391737778,1760763091760,-500.0,0.00024624,2]
[391737779,1760763091790,-500.0,0.00024624,2]
[391737780,1760763091820,-500.0,0.00024624,2]
[391737781,1760763091849,-500.0,0.00024624,2]
[391737782,1760763092095,-500.0,0.00024624,2]
[391737783,1760763092125,-500.0,0.00024624,2]
[391737784,1760763092155,-500.0,0.00024624,2]
[391737785,1760763092184,-500.0,0.00024624,2]
[391737786,1760763092214,-500.0,0.00024624,2]
[391737787,1760763092243,-500.0,0.00024624,2]
[391737788,1760763092272,-500.0,0.00024624,2]
[391737789,1760763092303,-500.0,0.00024624,2]
[391737790,1760763092334,-500.0,0.00024624,2]
[391737791,1760763092365,-500.0,0.00024624,2]
[391737792,1760763092468,-500.0,0.00024624,2]
[391737793,1760763092498,-500.0,0.00024624,2]
[391737794,1760763092528,-500.0,0.00024624,2]
[391737795,1760763092557,-500.0,0.00024624,2]
[391737796,1760763092586,-500.0,0.00024624,2]
[391737797,1760763092616,-500.0,0.00024624,2]
[391737798,1760763092646,-500.0,0.00024624,2]
[391737799,1760763092675,-500.0,0.00024624,2]
[391737800,1760763092705,-500.0,0.00024624,2]
[391737801,1760763092734,-500.0,0.00024624,2]
[391737802,1760763092843,-500.0,0.00024624,2]
[391737803,1760763092871,-501.44888407,0.00024624,2]
[391737804,1760763092899,-500.0,0.00024624,2]
[391737805,1760763092928,-500.0,0.00024624,2]
[391737806,1760763092958,-500.0,0.00024624,2]
[391737807,1760763092990,-304.83726902,0.00024624,2]
[391737808,1760763093020,-500.0,0.00024624,2]
[391737809,1760763093056,-500.0,0.00024624,2]
[391737810,1760763093105,-500.0,0.00024624,2]
[391737811,1760763093152,-500.0,0.00024624,2]
[391737812,1760763094865,-500.0,0.00024624,2]
[391737813,1760763094896,-500.0,0.00024624,2]
[391737814,1760763094927,-298.82477386,0.00024624,2]
[391737815,1760763094959,-172.63536711,0.00024637,2]
[391737816,1760763094995,-2859.89,0.00024657,2]
[391737817,1760763095027,-501.0,0.00024657,2]
[391737818,1760763095233,-500.0,0.00024657,2]
[391737819,1760763095264,-500.0,0.00024657,2]
[391737820,1760763095295,-222.89585749,0.00024657,2]
[391737821,1760763095325,-388.40665868,0.00024657,2]
[391737822,1760763095355,-1146.28,0.00024657,2]
[391737823,1760763095385,-463.01184995,0.00024657,2]
[391737824,1760763095414,-500.0,0.00024657,2]
[391737825,1760763095443,-500.0,0.00024657,2]
[391737826,1760763095548,-1853.53,0.00024657,2]
[391737827,1760763095578,-500.0,0.00024657,2]
[391737828,1760763095608,-500.0,0.00024657,2]
[391737829,1760763095636,-500.0,0.00024657,2]
[391737830,1760763095665,-500.0,0.00024657,2]
[391737831,1760763095693,-500.0,0.00024657,2]
[391737832,1760763096357,-388.07753029,0.00024724,2]
[391737833,1760763096388,-603.61669893,0.00024724,2]
[391737834,1760763096403,-500.0,0.00024724,2]
[391737835,1760763096418,-500.0,0.00024724,2]
[391737836,1760763096433,-500.0,0.00024724,2]
[391737837,1760763096453,-500.0,0.00024724,2]
[391737838,1760763096472,-500.0,0.00024724,2]
[391737839,1760763096488,-1292.95,0.00024724,2]
[391737840,1760763096564,-10000.01,0.00024724,2]
[391737841,1760763096703,-10000.01,0.00024724,2]
[391737842,1760763096719,-10000.01,0.00024724,2]
[391737843,1760763096734,-10000.01,0.00024724,2]
[391737844,1760763096766,-1508.89929285,0.00024724,2]
[391737845,1760763096790,-6982.2114143,0.00024724,2]
[391737846,1760763097389,500.0,0.00024624,2]
[391737847,1760763097421,500.0,0.00024624,2]
[391737848,1760763097453,500.0,0.00024624,2]
[391737849,1760763097488,500.0,0.00024624,2]
[391737850,1760763097531,400.0,0.00024624,2]
[391737851,1760763097560,500.0,0.00024624,2]
[391737852,1760763097589,500.0,0.00024624,2]
[391737853,1760763097617,500.0,0.00024624,2]
[391737854,1760763097646,500.0,0.00024624,2]
[391737855,1760763097745,500.0,0.00024624,2]
[391737856,1760763097809,500.0,0.00024624,2]
[391737857,1760763098157,-168.0,0.00024725,2]
[391737858,1760763098181,-132.00000003,0.00024728,2]
[391737859,1760763099090,-203.99999997,0.00024728,2]
[391737860,1760763099121,-800.0,0.00024738,2]
[391737861,1760763099155,-800.0,0.00024745,2]
[391737862,1760763099186,-800.0,0.00024747,2]
[391737863,1760763099217,-800.0,0.0002475,2]
[391737864,1760763099248,-800.0,0.00024764,2]
[391737865,1760763099279,-500.0,0.00024773,2]
[391737866,1760763099307,-92.01000006,0.00024773,2]
[391737867,1760763099578,-407.98999994,0.00024773,2]
[391737868,1760763099608,-508.61918935,0.00024773,2]
[391737869,1760763099637,-500.0,0.00024773,2]
[391737870,1760763099666,-500.0,0.00024773,2]
[391737871,1760763099697,-506.95259966,0.00024773,2]
[391737872,1760763099727,-500.0,0.00024773,2]
[391737873,1760763099756,-500.0,0.00024773,2]
[391737874,1760763099786,-500.0,0.00024773,2]
[391737875,1760763099815,-500.0,0.00024773,2]
[391737876,1760763099844,-500.0,0.00024773,2]
[391737877,1760763100996,4600.01,0.00023107,2]
[391737878,1760763102866,-230.02804165,0.00019178,2]
[391737879,1760763105014,-4769.97195835,0.00019178,2]
[391737880,1760763105045,-60.0760833,0.00023107,2]
[391737881,1760763105138,-339.9139167,0.00023107,2]
[391737882,1760763105168,-500.0,0.00024624,2]
[391737883,1760763105200,-500.0,0.00024657,2]
[391737884,1760763105232,-500.0,0.00024657,2]
[391737885,1760763105263,-505.66295865,0.00024657,2]
[391737886,1760763105294,-1232.05,0.00024657,2]
[391737887,1760763105324,-500.0,0.00024657,2]
[391737888,1760763105355,-163.26022223,0.00024657,2]
[391737889,1760763105386,-264.717,0.00024724,7]
[391737890,1760763105415,-184.03626781,0.00024724,7]
[391737891,1760763105715,-5000.0,0.00024724,2]
[391737892,1760763105860,-500.0,0.00024773,2]
[391737893,1760763105889,-500.0,0.00024773,2]
[391737894,1760763105918,-500.0,0.00024773,2]
[391737895,1760763105948,-502.54298867,0.00024773,2]
[391737896,1760763105979,-500.93274379,0.00024773,2]
[391737897,1760763106013,-500.0,0.00024773,2]
[391737898,1760763106043,-500.0,0.00024773,2]
[391737899,1760763106075,-500.0,0.00024773,2]
[391737900,1760763106106,-500.0,0.00024773,2]
[391737901,1760763106136,-493.05853508,0.00024773,2]
[391737902,1760763106175,-6.94146492,0.00024773,2]
[391737903,1760763106212,-500.0,0.00024773,2]
[391737904,1760763106244,-500.0,0.00024773,2]
[391737905,1760763106276,-501.94085089,0.00024773,2]
[391737906,1760763106307,-500.0,0.00024773,2]
[391737907,1760763106339,-500.0,0.00024773,2]
[391737908,1760763106370,-150.0,0.00024773,2]
[391737909,1760763106413,-500.0,0.00024773,2]
[391737910,1760763106444,-500.0,0.00024773,2]
[391737911,1760763106473,-500.0,0.00024773,2]
[391737912,1760763106503,-500.0,0.00024773,2]
[391737913,1760763106533,-182.24536838,0.00024773,2]
[391737914,1760763106582,-317.75463162,0.00024773,2]
[391737915,1760763106612,-501.8883499,0.00024773,2]
[391737916,1760763106642,-500.0,0.00024773,2]
[391737917,1760763106670,-500.0,0.00024773,2]
[391737918,1760763106700,-800.0,0.00024789,2]
[391737919,1760763106731,-151.0,0.000248,5]
[391737920,1760763106761,-151.0,0.000248,10]
[391737921,1760763106792,-151.0,0.000248,8]
[391737922,1760763106822,-151.0,0.000248,8]
[391737923,1760763106850,-151.0,0.000248,8]
[391737924,1760763106879,-151.0,0.000248,9]
[391737925,1760763106908,-800.0,0.000248,2]
[391737926,1760763107017,-4763.26905062,0.000248,2]
[391737927,1760763107169,-473.47189876,0.000248,2]
[391737928,1760763107199,-800.0,0.00024814,2]
[391737929,1760763107229,-333.09,0.00024814,3]
[391737930,1760763107260,-309.31,0.00024814,3]
[391737931,1760763107290,-154.65,0.00024814,3]
[391737932,1760763107326,-500.0,0.00024824,2]
[391737933,1760763107357,-369.52992998,0.00024824,2]
[391737934,1760763107388,-500.0,0.00024824,2]
[391737935,1760763107418,-500.0,0.00024824,2]
[391737936,1760763107447,-500.0,0.00024824,2]
[391737937,1760763107476,-500.0,0.00024824,2]
[391737938,1760763109116,-500.0,0.00024824,2]
[391737939,1760763109147,-500.0,0.00024824,2]
[391737940,1760763109177,-503.63384918,0.00024824,2]
[391737941,1760763109207,-329.83372466,0.00024824,2]
[391737942,1760763109240,-500.0,0.00024824,2]
[391737943,1760763109270,-483.51624943,0.00024824,2]
[391737944,1760763109301,-400.08042631,0.00024824,2]
[391737945,1760763109329,-500.0,0.00024824,2]
[391737946,1760763109359,-450.90147129,0.00024824,2]
[391737947,1760763109388,-216.96060995,0.00024824,2]
[391737948,1760763109417,-510.09736417,0.00024824,2]
[391737949,1760763109447,-7.7932633,0.00024824,2]
[391737950,1760763109486,-194.37608342,0.00024824,2]
[391737951,1760763109514,-500.0,0.00024824,2]
[391737952,1760763109544,-509.29133073,0.00024824,2]
[391737953,1760763109573,-465.24601014,0.00024824,2]
[391737954,1760763109603,-500.0,0.00024824,2]
[391737955,1760763109633,-500.0,0.00024824,2]
[391737956,1760763109663,-500.0,0.00024824,2]
[391737957,1760763109693,-737.08,0.00024824,2]
[391737958,1760763109723,-500.0,0.00024824,2]
[391737959,1760763109756,-500.0,0.00024824,2]
[391737960,1760763109804,-500.0,0.00024824,2]
[391737961,1760763109833,-593.83086773,0.00024824,2]
[391737962,1760763109863,-500.0,0.00024824,2]
[391737963,1760763109893,-290.02947887,0.00024824,2]
[391737964,1760763109923,-433.8289077,0.00024824,2]
[391737965,1760763109953,-500.0,0.00024824,2]
[391737966,1760763109983,-500.0,0.00024824,2]
[391737967,1760763110020,-479.56710786,0.00024824,2]
[391737968,1760763110052,-350.8791518,0.00024824,2]
[391737969,1760763110083,-504.14227971,0.00024824,2]
[391737970,1760763110114,-206.6818119,0.00024824,2]
[391737971,1760763110159,-282.09078886,0.00024824,2]
[391737972,1760763110191,-417.09144048,0.00024824,2]
[391737973,1760763110222,-542.1801711,0.00024824,2]
[391737974,1760763110252,-500.0,0.00024824,2]
[391737975,1760763110283,-468.80571533,0.00024824,2]
[391737976,1760763110314,-508.96435695,0.00024824,2]
[391737977,1760763110345,-500.0,0.00024824,2]
[391737978,1760763110376,-303.90280605,0.00024824,2]
[391737979,1760763110407,-500.0,0.00024824,2]
[391737980,1760763110437,-500.0,0.00024824,2]
[391737981,1760763110467,-303.73280964,0.00024824,2]
[391737982,1760763110518,-393.75195688,0.00024824,2]
[391737983,1760763110547,-500.0,0.00024824,2]
[391737984,1760763110580,-1000.0,0.00024824,2]
[391737985,1760763110763,-500.0,0.00024824,2]
[391737986,1760763110795,-546.59197249,0.00024824,2]
[391737987,1760763110825,-500.0,0.00024824,2]
[391737988,1760763110854,-500.0,0.00024824,2]
[391737989,1760763110884,-500.0,0.00024824,2]
[391737990,1760763110914,-500.0,0.00024824,2]
[391737991,1760763110955,-462.57083789,0.00024824,2]
[391737992,1760763110987,-500.0,0.00024824,2]
[391737993,1760763111020,-500.0,0.00024824,2]
[391737994,1760763111050,-509.47976735,0.00024824,2]
[391737995,1760763111082,-500.0,0.00024824,2]
[391737996,1760763111113,-151.0,0.00024824,7]
[391737997,1760763111144,-500.0,0.00024824,2]
[391737998,1760763111175,-500.0,0.00024824,2]
[391737999,1760763111206,-280.39648029,0.00024824,2]
[391738000,1760763111244,-500.0,0.00024824,2]
[391738001,1760763111276,-327.62920995,0.00024824,2]
[391738002,1760763111307,-37.85740904,0.00024824,2]
[391738003,1760763112814,-308.34604256,0.00024576,2]
[391738004,1760763114252,-3907.65395744,0.00024576,2]
[391738005,1760763114284,-500.0,0.00024624,2]
[391738006,1760763114317,-500.0,0.00024624,2]
[391738007,1760763114444,-500.0,0.00024624,2]
[391738008,1760763114474,-300.0,0.00024624,2]
[391738009,1760763114505,-500.0,0.00024657,2]
[391738010,1760763114535,-500.0,0.00024657,2]
[391738011,1760763114564,-462.14259096,0.00024824,2]
[391738012,1760763114593,-500.0,0.00024824,2]
[391738013,1760763114622,-190.00116363,0.00024824,2]
[391738014,1760763114652,-419.79129057,0.00024824,2]
[391738015,1760763114682,-487.39732058,0.00024824,2]
[391738016,1760763114711,-500.0,0.00024824,2]
[391738017,1760763114741,-285.45089994,0.00024824,2]
[391738018,1760763114770,-340.72559743,0.00024824,2]
[391738019,1760763114865,-500.0,0.00024657,2]
[391738020,1760763114895,-28.99227378,0.00024824,2]
[391738021,1760763114925,-500.0,0.00024824,2]
[391738022,1760763114957,-465.1104027,0.00024824,2]
[391738023,1760763114989,-500.0,0.00024824,2]
[391738024,1760763115026,-500.0,0.00024824,2]
[391738025,1760763115059,-256.76518858,0.00024824,2]
[391738026,1760763115089,-516.27705571,0.00024824,2]
[391738027,1760763115121,-500.0,0.00024824,2]
[391738028,1760763115152,-637.07236498,0.00024824,2]
[391738029,1760763115185,-244.38277126,0.00024824,2]
[391738030,1760763115217,-202.80988598,0.00024824,2]
[391738031,1760763115349,-297.19011402,0.00024824,2]
[391738032,1760763115381,-151.0,0.00024824,7]
[391738033,1760763115412,-500.0,0.00024824,2]
[391738034,1760763115442,-309.11717617,0.00024824,2]
[391738035,1760763115473,-501.61379899,0.00024824,2]
[391738036,1760763115504,-152.79658415,0.00024824,2]
[391738037,1760763115533,-500.0,0.00024824,2]
[391738038,1760763115689,-565.00129933,0.00024824,2]
[391738039,1760763115726,-273.40272193,0.00024824,2]
[391738040,1760763115756,-151.0,0.00024824,7]
[391738041,1760763115784,-500.0,0.00024824,2]
[391738042,1760763115813,-151.0,0.00024824,7]
[391738043,1760763115842,-196.41675393,0.00024824,2]
[391738044,1760763115871,-500.0,0.00024824,2]
[391738045,1760763115900,-2.93310296,0.00024824,2]
[391738046,1760763116032,-497.06689704,0.00024824,2]
[391738047,1760763116061,-500.0,0.00024824,2]
[391738048,1760763116090,-500.0,0.00024824,2]
[391738049,1760763116120,-367.65508487,0.00024824,2]
[391738050,1760763116150,-500.0,0.00024824,2]
[391738051,1760763116179,-500.0,0.00024824,2]
[391738052,1760763116210,-500.0,0.00024824,2]
[391738053,1760763116240,-500.0,0.00024824,2]
[391738054,1760763116269,-279.52665081,0.00024824,2]
[391738055,1760763116298,-502.83482459,0.00024824,2]
[391738056,1760763116329,-345.75459841,0.00024824,2]
[391738057,1760763116419,-14.33388856,0.00024824,2]
[391738058,1760763116447,-500.0,0.00024824,2]
[391738059,1760763116476,-488.08478428,0.00024824,2]
[391738060,1760763116507,-151.0,0.00024824,7]
[391738061,1760763116536,-500.0,0.00024824,2]
[391738062,1760763116565,-500.0,0.00024824,2]
[391738063,1760763116595,-500.0,0.00024824,2]
[391738064,1760763116623,-508.20267717,0.00024824,2]
[391738065,1760763116652,-500.0,0.00024824,2]
[391738066,1760763116680,-404.60753386,0.00024824,2]
[391738067,1760763116709,-292.74941089,0.00024824,2]
[391738068,1760763116738,-500.0,0.00024824,2]
[391738069,1760763116908,-500.0,0.00024824,2]
[391738070,1760763116937,-241.30935838,0.00024824,2]
[391738071,1760763116965,-410.4537728,0.00024824,2]
[391738072,1760763116995,-500.0,0.00024824,2]
[391738073,1760763117029,-500.0,0.00024824,2]
[391738074,1760763117060,-151.0,0.00024824,7]
[391738075,1760763117091,-151.0,0.00024824,7]
[391738076,1760763117120,-151.0,0.00024824,7]
[391738077,1760763117150,-759.46,0.00024824,2]
[391738078,1760763117179,-151.0,0.00024824,7]
[391738079,1760763117209,-500.0,0.00024824,2]
[391738080,1760763117238,-500.0,0.00024824,2]
[391738081,1760763117266,-469.56373764,0.00024824,2]
[391738082,1760763119717,-7151.43708859,0.00024527,2]
[391738083,1760763119736,-10000.01,0.00024527,2]
[391738084,1760763119753,-10000.01,0.00024527,2]
[391738085,1760763119770,-10000.01,0.00024527,2]
[391738086,1760763119786,-10000.01,0.00024527,2]
[391738087,1760763119803,-10000.01,0.00024527,2]
[391738088,1760763120365,-10000.01,0.00024527,2]
[391738089,1760763120524,-10000.01,0.00024527,2]
[391738090,1760763120679,-10000.01,0.00024527,2]
[391738091,1760763120788,-10000.01,0.00024527,2]
[391738092,1760763120925,-10000.01,0.00024527,2]
[391738093,1760763121366,-10000.01,0.00024527,2]
[391738094,1760763121443,-10000.01,0.00024527,2]
[391738095,1760763121534,-10000.01,0.00024527,2]
[391738096,1760763121657,-10000.01,0.00024527,2]
[391738097,1760763121758,-10000.01,0.00024527,2]
[391738098,1760763126400,-300.0,0.00024526,2]
[391738099,1760763126469,-9400.01,0.00024527,2]
[391738100,1760763126521,-10000.01,0.00024527,2]
[391738101,1760763126663,-10000.01,0.00024527,2]
[391738102,1760763126826,-10000.01,0.00024527,2]
[391738103,1760763126923,-5000.0,0.00024281,2]
[391738104,1760763126969,-0.01,0.00024527,2]
[391738105,1760763127268,-10000.01,0.00024527,2]
[391738106,1760763127399,-10000.01,0.00024527,2]
[391738107,1760763127530,-10000.01,0.00024527,2]
[391738108,1760763127665,-10000.01,0.00024527,2]
[391738109,1760763127811,-10000.01,0.00024527,2]
[391738110,1760763135388,-10000.01,0.00024527,2]
[391738111,1760763135504,-10000.01,0.00024527,2]
[391738112,1760763135637,-10000.01,0.00024527,2]
[391738113,1760763135781,-5000.0,0.00024282,2]
[391738114,1760763135822,-0.01,0.00024527,2]
[391738115,1760763135916,-10000.01,0.00024527,2]
[391738116,1760763136051,-10000.01,0.00024527,2]
[391738117,1760763136162,-10000.01,0.00024527,2]
[391738118,1760763136278,-10000.01,0.00024527,2]
[391738119,1760763136400,-10000.01,0.00024527,2]
[391738120,1760763136523,-10000.01,0.00024527,2]
[391738121,1760763139637,-150.0,0.00019472,2]
[391738122,1760763139662,-179.28,0.00020399,2]
[391738123,1760763139686,-18.18118693,0.00021327,2]
[391738124,1760763142899,-167.36751622,0.00021327,2]
[391738125,1760763153559,-1577.33881932,0.00021114,2]
[391738126,1760763154195,-83.37129685,0.00021327,2]
[391738127,1760763154217,-71.99723116,0.00021996,2]
[391738128,1760763168771,-3487.64021078,0.00021996,2]
[391738129,1760763168816,-3024.72957844,0.00022031,2]
[391738130,1760763168879,-1975.27042156,0.00022031,2]
[391738131,1760763169768,-175.68324046,0.00022254,2]
[391738132,1760763178345,-182.87675954,0.00022254,2]
[391738133,1760763178376,-64.7629551,0.00023181,2]
[391738134,1760763180696,-153.0,0.00023181,2]
[391738135,1760763181905,-217.54586185,0.00023181,2]
[391738136,1760763183832,-12.89118305,0.00023181,2]
[391738137,1760763183910,784.0,0.00022949,2]
[391738139,1760763199013,-537.84,0.00024108,2]
[391738140,1760763201170,-319.7481198,0.00024372,2]
[391738141,1760763201193,-266.2518802,0.00024393,2]
[391738142,1760763202480,-174.82904481,0.00024393,2]
[391738143,1760763203992,-196.0,0.00024393,2]
[391738144,1760763214154,-287.03432561,0.00024393,2]
[391738145,1760763214763,-300.0,0.000245,2]
[391738146,1760763214786,-32.31524092,0.00024525,2]
[391738147,1760763218785,150.0,0.00019358,2]
[391738148,1760763219255,238.46,0.0002028,2]
[391738149,1760763219643,357.69,0.00021202,2]
[391738150,1760763219845,-158.8042301,0.00024525,2]
[391738151,1760763220100,476.92,0.00022123,2]
[391738152,1760763220536,596.15,0.00023045,2]
[391738153,1760763221713,715.38,0.00023967,2]
[391738154,1760763227380,300.0,0.000232,2]
[391738155,1760763232468,420.0,0.0002432,2]
[391738156,1760763246636,300.0,0.000232,2]
[391738157,1760763252491,417.15472785,0.00024393,2]
[391738159,1760763261944,300.0,0.000232,2]
[391738160,1760763262424,1025.497648,0.00013699,2]
[391738161,1760763262727,1025.497648,0.00020187,2]
[391738162,1760763267508,344.91485107,0.0001551,2]
[391738163,1760763291879,300.0,0.000243,2]
[391738164,1760763293005,300.0,0.000232,2]
[391738165,1760763301613,150.0,0.00019412,2]
[391738166,1760763302108,173.94,0.00020336,2]
[391738167,1760763302690,260.91,0.0002126,2]
[391738168,1760763303039,347.88,0.00022185,2]
[391738169,1760763303590,434.85,0.00023109,2]
[391738170,1760763303984,521.82,0.00024033,2]
[391738171,1760763305957,268.87647386,0.000232,2]
[391738172,1760763305984,31.12352614,0.000232,2]
[391738173,1760763306333,5000.0,0.00024393,2]
[391738174,1760763332993,5000.0,0.00024395,2]
[391738175,1760763350493,-166.0,0.00024395,2]
[391738176,1760763383283,150.0,0.00019369,2]
[391738177,1760763383805,150.0,0.00020291,2]
[391738178,1760763384365,188.77,0.00021214,2]
[391738179,1760763384797,251.7,0.00022136,2]
[391738180,1760763385202,314.62,0.00023059,2]
[391738181,1760763386346,377.54,0.00023981,2]
[391738182,1760763391929,239.81108985,0.00024395,2]
[391738183,1760763444949,391.0,0.00023949,2]
[391738184,1760763451976,391.0,0.00023932,2]
[391738185,1760763457728,391.0,0.00024225,2]
[391738186,1760763461398,150.0,0.00019413,2]
[391738187,1760763461933,150.0,0.00020337,2]
[391738188,1760763462330,150.0,0.00021262,2]
[391738189,1760763462773,178.76,0.00022186,2]
[391738190,1760763463196,391.0,0.00024156,2]
[391738191,1760763463625,223.45,0.00023111,2]
[391738192,1760763464369,268.14,0.00024035,2]
[391738193,1760763469308,391.0,0.00024073,2]
[391738194,1760763480925,168.0,0.00024071,2]
[391738195,1760763488572,84.21891015,0.00024076,2]
[391738196,1760763488599,83.78108985,0.00024076,2]
[391738197,1760763511842,300.0,0.000242,2]
[391738198,1760763524068,300.0,0.000242,2]
[391738199,1760763537561,300.0,0.000242,2]
[391738200,1760763538576,150.0,0.00019158,2]
[391738201,1760763539133,150.0,0.0002007,2]
[391738202,1760763539636,150.0,0.00020983,2]
[391738203,1760763540266,150.0,0.00021895,2]
[391738204,1760763540474,152.16,0.00022807,2]
[391738205,1760763540972,182.59,0.0002372,2]
[391738206,1760763551119,300.0,0.000242,2]
[391738207,1760763569301,166.0,0.000242,2]
[391738208,1760763572312,1000.0,0.00033826,120]
[391738209,1760763580537,417.15472785,0.00024395,2]
[391738210,1760763611957,150.0,0.0001908,2]
[391738211,1760763612455,150.0,0.00019988,2]
[391738212,1760763612926,150.0,0.00020897,2]
[391738213,1760763613421,150.0,0.00021806,2]
[391738214,1760763613951,150.0,0.00022714,2]
[391738215,1760763614371,150.0,0.00023623,2]
[391738216,1760763617186,500.0,0.00029041,120]
[391738217,1760763665471,-2.0,0.00024395,2]
[391738218,1760763665498,-172.47296786,0.00024395,2]
[391738219,1760763666932,-272.87246673,0.00024395,2]
[391738220,1760763666960,-326.76988924,0.00024395,2]
[391738221,1760763666986,-127.0707259,0.00024417,2]
[391738222,1760763667649,195.602671,0.00023523,2]
[391738223,1760763668518,-172.9292741,0.00024417,2]
[391738224,1760763668543,-207.0707259,0.00024418,2]
[391738225,1760763682067,150.0,0.00019081,2]
[391738226,1760763682574,150.0,0.00019989,2]
[391738227,1760763683080,150.0,0.00020898,2]
[391738228,1760763702814,320.0,0.00024197,2]
[391738229,1760763721073,168.0,0.00024348,2]
[391738230,1760763724452,168.0,0.00024099,2]
[391738231,1760763735430,168.0,0.00024262,7]
[391738232,1760763773496,318.93893037,0.00023624,2]
[391738233,1760763775605,364.13713307,0.00023624,2]
[391738234,1760763813709,1279.0597982,0.00033813,120]
[391738235,1760763852416,-320.0,0.00024397,2]
[391738236,1760763852451,-183.9292741,0.00024418,2]
[391738237,1760763852486,-168.0,0.00024492,2]
[391738238,1760763852520,-300.0,0.00024521,2]
[391738239,1760763852552,-1200.0,0.00024522,2]
[391738240,1760763853624,-4573.67393656,0.00024522,2]
[391738241,1760763853643,-10000.01,0.00024522,2]
[391738242,1760763853806,-10000.01,0.00024522,2]
[391738243,1760763853855,-10000.01,0.00024522,2]
[391738244,1760763853871,-7170.82116312,0.00024522,2]
[391738245,1760763853880,-446.05431563,0.00024523,2]
[391738246,1760763853890,-500.0,0.00024523,2]
[391738247,1760763853899,-500.0,0.00024523,2]
[391738248,1760763853909,-500.0,0.00024523,2]
[391738249,1760763853918,-500.0,0.00024523,2]
[391738250,1760763853928,-383.13452125,0.00024523,2]
[391738251,1760763853965,-116.86547875,0.00024523,2]
[391738252,1760763853997,-511.64858545,0.00024523,2]
[391738253,1760763854033,-500.0,0.00024523,2]
[391738254,1760763854068,-500.0,0.00024523,2]
[391738255,1760763854103,-179.02454324,0.00024523,2]
[391738256,1760763854136,-1200.0,0.00024523,2]
[391738257,1760763854169,-500.0,0.00024524,2]
[391738258,1760763854202,-500.0,0.00024524,2]
[391738259,1760763854236,-500.0,0.00024526,2]
[391738260,1760763854490,-5492.47139256,0.00024527,2]
[391738261,1760763854579,-116.86547875,0.00024527,2]
[391738262,1760763854652,-511.64858545,0.00024527,2]
[391738263,1760763854681,-500.0,0.00024527,2]
[391738264,1760763854714,-500.0,0.00024527,2]
[391738265,1760763854781,-179.02454324,0.00024527,2]
[391738266,1760763854807,-1200.0,0.00024527,2]
[391738267,1760763854824,-500.0,0.00024527,2]
[391738268,1760763854845,-500.0,0.00024527,2]
[391738269,1760763854870,-500.0,0.00024527,2]
[391738270,1760763854887,-984.93278512,0.00024527,2]
[391738271,1760763858098,-4939.35,0.00024521,2]
[391738272,1760763858124,-121.31,0.00024521,2]
[391738273,1760763858243,-10000.01,0.00024527,2]
[391738274,1760763858355,-10000.01,0.00024527,2]